fUST/lending_fUST_20250624
["ID","MTS","AMOUNT","RATE_DAILY","PERIOD"]
[367230468,1750709438167,-500.0,0.00019245,2]
[367230469,1750709438176,-500.0,0.00019245,2]
[367230470,1750709438185,-500.0,0.00019245,2]
[367230471,1750709438194,-5000.0,0.00019245,2]
[367230472,1750709438203,-500.0,0.00019245,2]
[367230473,1750709438212,-25000.0,0.00019245,2]
[367230474,1750709438222,-1200.0,0.00019247,2]
[367230475,1750709438231,-1011.17,0.00019248,2]
[367230476,1750709438240,-460.0,0.00019248,2]
[367230477,1750709438251,-460.0,0.00019248,2]
[367230478,1750709438260,-536.36,0.00019248,2]
[367230479,1750709438270,-300.0,0.00019248,2]
[367230480,1750709438279,-460.0,0.00019248,2]
[367230481,1750709438290,-460.0,0.00019248,2]
[367230482,1750709438300,-460.0,0.00019249,2]
[367230483,1750709438309,-489.21869622,0.00019249,2]
[367230484,1750709438319,-460.0,0.00019249,2]
[367230485,1750709438328,-460.0,0.00019249,2]
[367230486,1750709438337,-460.0,0.00019249,2]
[367230487,1750709438346,-460.0,0.00019249,2]
[367230488,1750709438355,-460.0,0.00019249,2]
[367230489,1750709438365,-622.87,0.00019249,2]
[367230490,1750709438375,-460.0,0.00019249,2]
[367230491,1750709438384,-460.0,0.00019249,2]
[367230492,1750709438394,-460.0,0.00019249,2]
[367230493,1750709438404,-460.0,0.00019249,2]
[367230494,1750709438414,-460.0,0.00019249,2]
[367230495,1750709438427,-460.0,0.00019249,2]
[367230496,1750709438436,-460.0,0.00019249,2]
[367230497,1750709438446,-460.0,0.0001925,2]
[367230498,1750709438456,-460.0,0.0001925,2]
[367230499,1750709438466,-3536.40236636,0.00019251,2]
[367230500,1750709438476,-1278.2,0.00019251,2]
[367230501,1750709438487,-511.36,0.00019251,2]
[367230502,1750709438496,-1031.32,0.00019251,2]
[367230503,1750709438506,-1248.93,0.00019251,2]
[367230504,1750709438516,-513.68,0.00019251,2]
[367230505,1750709438526,-3094.59,0.00019251,2]
[367230506,1750709438536,-1113.63,0.00019251,2]
[367230519,1750709438742,-460.0,0.00019251,2]
[367230521,1750709438753,-647.1,0.00019251,2]
[367230523,1750709438762,-460.0,0.00019251,2]
[367230525,1750709438771,-578.67,0.00019251,2]
[367230527,1750709438781,-3564.29,0.00019251,2]
[367230529,1750709438793,-460.0,0.00019252,2]
[367230531,1750709438801,-600.41,0.00019252,2]
[367230533,1750709438810,-2404.02,0.00019252,2]
[367230535,1750709438820,-460.0,0.00019252,2]
[367230537,1750709438829,-2105.51,0.00019252,2]
[367230539,1750709438839,-460.0,0.00019252,2]
[367230541,1750709438848,-460.0,0.00019252,2]
[367230543,1750709438858,-460.0,0.00019252,2]
[367230545,1750709438867,-267.8,0.00019252,2]
[367230547,1750709438876,-460.0,0.00019252,2]
[367230549,1750709438885,-460.0,0.00019252,2]
[367230551,1750709438894,-407.03104692,0.00019252,2]
[367230553,1750709438903,-500.0,0.00019255,2]
[367230555,1750709438912,-500.0,0.00019255,2]
[367230557,1750709438921,-403.25547799,0.00019255,2]
[367230559,1750709438930,-500.0,0.00019255,2]
[367230561,1750709438939,-500.0,0.00019255,2]
[367230563,1750709438949,-500.0,0.00019255,2]
[367230565,1750709438958,-592.23657648,0.00019255,2]
[367230567,1750709438967,-500.0,0.00019255,2]
[367230569,1750709438977,-500.0,0.00019255,2]
[367230571,1750709438986,-500.0,0.00019255,2]
[367230573,1750709438995,-2537.52,0.00019256,2]
[367230575,1750709439004,-818.44,0.00019256,2]
[367230577,1750709439013,-460.0,0.00019256,2]
[367230579,1750709439023,-1645.03,0.00019256,2]
[367230581,1750709439032,-556.78,0.00019256,2]
[367230582,1750709439044,-460.0,0.00019256,2]
[367230583,1750709439054,-460.0,0.00019256,2]
[367230584,1750709439063,-2138.87,0.00019256,2]
[367230585,1750709439073,-3112.15,0.00019256,2]
[367230586,1750709439082,-550.47,0.00019256,2]
[367230587,1750709439091,-460.0,0.00019256,2]
[367230588,1750709439101,-763.89,0.00019256,2]
[367230589,1750709439110,-1297.4,0.00019256,2]
[367230590,1750709439120,-3323.48,0.00019256,2]
[367230591,1750709439130,-1380.82,0.00019256,2]
[367230592,1750709439139,-460.0,0.00019256,2]
[367230593,1750709439149,-875.66,0.00019256,2]
[367230594,1750709439158,-852.7,0.00019256,2]
[367230595,1750709439167,-460.0,0.00019256,2]
[367230596,1750709439177,-1112.07,0.00019256,2]
[367230597,1750709439186,-460.0,0.00019256,2]
[367230598,1750709439196,-1538.2,0.00019256,2]
[367230599,1750709439205,-460.0,0.00019257,2]
[367230600,1750709439215,-460.0,0.00019257,2]
[367230601,1750709439225,-460.0,0.00019257,2]
[367230602,1750709439234,-460.0,0.00019257,2]
[367230603,1750709439243,-658.28,0.00019257,2]
[367230604,1750709439253,-471.47923443,0.00019257,2]
[367230605,1750709439264,-460.0,0.00019257,2]
[367230606,1750709439274,-460.0,0.00019257,2]
[367230607,1750709439283,-460.0,0.00019257,2]
[367230608,1750709439295,-460.0,0.00019257,2]
[367230609,1750709439305,-1129.45,0.00019257,2]
[367230610,1750709439314,-460.0,0.00019257,2]
[367230611,1750709439324,-617.16786251,0.00019257,2]
[367230612,1750709439333,-460.0,0.00019257,2]
[367230613,1750709439343,-460.0,0.00019257,2]
[367230614,1750709439353,-460.0,0.00019257,2]
[367230615,1750709439363,-460.0,0.00019257,2]
[367230616,1750709439373,-460.0,0.00019257,2]
[367230617,1750709439382,-460.0,0.00019257,2]
[367230618,1750709439392,-517.4,0.00019257,2]
[367230619,1750709439401,-580.0,0.00019257,2]
[367230620,1750709439415,-158.50184418,0.00019257,2]
[367230621,1750709439425,-460.0,0.00019257,2]
[367230622,1750709439436,-460.0,0.00019257,2]
[367230623,1750709439446,-460.0,0.00019257,2]
[367230624,1750709439458,-526.89,0.00019257,2]
[367230625,1750709439467,-460.0,0.00019257,2]
[367230626,1750709439477,-539.46,0.00019257,2]
[367230627,1750709439487,-460.0,0.00019257,2]
[367230628,1750709439497,-460.0,0.00019257,2]
[367230629,1750709439513,-911.85,0.00019257,2]
[367230630,1750709439522,-460.0,0.00019257,2]
[367230631,1750709439532,-460.0,0.00019257,2]
[367230632,1750709439543,-491.76,0.00019257,2]
[367230633,1750709439552,-1000.0,0.00019257,2]
[367230634,1750709439562,-500.0,0.00019257,2]
[367230636,1750709439572,-460.0,0.00019257,2]
[367230637,1750709439582,-460.0,0.00019257,2]
[367230638,1750709439591,-460.0,0.00019257,2]
[367230639,1750709439600,-1071.69,0.00019257,2]
[367230640,1750709439610,-460.0,0.00019257,2]
[367230642,1750709439619,-460.0,0.00019257,2]
[367230643,1750709439628,-460.0,0.00019257,2]
[367230644,1750709439637,-460.0,0.00019257,2]
[367230645,1750709439647,-460.0,0.00019257,2]
[367230646,1750709439656,-460.0,0.00019257,2]
[367230647,1750709439666,-460.0,0.00019257,2]
[367230649,1750709439675,-460.0,0.00019257,2]
[367230650,1750709439684,-460.0,0.00019257,2]
[367230651,1750709439693,-460.0,0.00019257,2]
[367230652,1750709439703,-747.65,0.00019257,2]
[367230653,1750709439714,-460.0,0.00019257,2]
[367230654,1750709439724,-969.3,0.00019257,2]
[367230655,1750709439734,-482.23,0.00019257,2]
[367230656,1750709439744,-460.0,0.00019257,2]
[367230657,1750709439754,-460.0,0.00019257,2]
[367230658,1750709439764,-460.0,0.00019257,2]
[367230659,1750709439774,-460.0,0.00019257,2]
[367230660,1750709439783,-514.41,0.00019257,2]
[367230661,1750709439794,-460.0,0.00019257,2]
[367230662,1750709439803,-460.0,0.00019257,2]
[367230663,1750709439813,-601.88215911,0.00019257,2]
[367230664,1750709439822,-460.0,0.00019257,2]
[367230666,1750709439831,-829.43,0.00019257,2]
[367230668,1750709439841,-460.0,0.00019257,2]
[367230669,1750709439856,-460.0,0.00019257,2]
[367230671,1750709439868,-460.0,0.00019257,2]
[367230674,1750709439878,-460.0,0.00019257,2]
[367230675,1750709439888,-460.0,0.00019257,2]
[367230677,1750709439897,-561.81331533,0.00019257,2]
[367230680,1750709439907,-521.74,0.00019257,2]
[367230682,1750709439917,-1766.57,0.00019257,2]
[367230683,1750709439926,-460.0,0.00019257,2]
[367230685,1750709439936,-514.68,0.00019257,2]
[367230688,1750709439946,-460.0,0.00019257,2]
[367230690,1750709439956,-1000.0,0.00019259,2]
[367230692,1750709439964,-1000.0,0.00019259,2]
[367230693,1750709439974,-760.9083127,0.00019259,2]
[367230694,1750709439989,-239.0916873,0.00019259,2]
[367230696,1750709439998,-352.4526274,0.00019261,2]
[367230709,1750709440209,-647.5473726,0.00019261,2]
[367230710,1750709440219,-1000.0,0.00019261,2]
[367230711,1750709440229,-500.0,0.00019261,2]
[367230712,1750709440239,-1000.0,0.00019264,2]
[367230713,1750709440248,-1000.0,0.00019265,2]
[367230715,1750709440258,-168.0,0.00019326,2]
[367230717,1750709440267,-378.50026059,0.00019343,2]
[367230719,1750709440277,-5012.12279938,0.00019355,2]
[367230721,1750709440287,-460.0,0.0001937,2]
[367230723,1750709440302,-460.0,0.0001937,2]
[367230725,1750709440312,-460.0,0.0001937,2]
[367230727,1750709440322,-460.0,0.0001937,2]
[367230729,1750709440331,-460.0,0.0001937,2]
[367230731,1750709440341,-460.0,0.0001937,2]
[367230733,1750709440350,-460.0,0.0001937,2]
[367230735,1750709440360,-460.0,0.0001937,2]
[367230737,1750709440370,-460.0,0.0001937,2]
[367230739,1750709440380,-460.0,0.0001937,2]
[367230741,1750709440389,-460.0,0.0001937,2]
[367230743,1750709440399,-460.0,0.0001937,2]
[367230745,1750709440409,-2990.56,0.0001937,2]
[367230747,1750709440420,-460.0,0.0001937,2]
[367230749,1750709440431,-4998.46,0.0001937,2]
[367230751,1750709440441,-4466.27,0.0001937,2]
[367230753,1750709440451,-460.0,0.0001937,2]
[367230756,1750709440461,-1068.77332533,0.00019371,2]
[367230757,1750709440471,-589.55,0.00019411,3]
[367230761,1750709440480,-2358.21,0.00019421,3]
[367230763,1750709440491,-1179.11,0.00019421,3]
[367230765,1750709440502,-10661.29965232,0.00019431,2]
[367230767,1750709440512,-6661.59446654,0.00019431,2]
[367230769,1750709440521,-500.0,0.00019509,2]
[367230771,1750709440531,-151.0,0.00019509,2]
[367230773,1750709440540,-151.0,0.00019509,2]
[367230775,1750709440552,-151.0,0.00019509,2]
[367230776,1750709440561,-151.0,0.00019509,2]
[367230778,1750709440571,-500.0,0.00019509,2]
[367230780,1750709440581,-151.14697884,0.00019509,2]
[367230782,1750709440590,-500.0,0.00019509,2]
[367230784,1750709440599,-151.0,0.00019509,2]
[367230786,1750709440608,-151.0,0.00019509,2]
[367230788,1750709440618,-151.0,0.00019509,2]
[367230790,1750709440627,-500.0,0.00019509,2]
[367230792,1750709440636,-500.0,0.00019509,2]
[367230794,1750709440646,-500.0,0.00019509,2]
[367230796,1750709440655,-151.0,0.00019509,2]
[367230798,1750709440665,-155.48075089,0.00019509,2]
[367230800,1750709440674,-500.0,0.00019509,2]
[367230802,1750709440683,-151.0,0.00019509,2]
[367230804,1750709440692,-500.0,0.00019509,2]
[367230806,1750709440701,-151.0,0.00019509,2]
[367230808,1750709440711,-151.0,0.00019509,2]
[367230810,1750709440720,-460.0,0.00019522,2]
[367230812,1750709440729,-460.0,0.00019522,2]
[367230814,1750709440739,-460.0,0.00019522,2]
[367230816,1750709440748,-460.0,0.00019522,2]
[367230818,1750709440757,-460.0,0.00019522,2]
[367230820,1750709440767,-460.0,0.00019522,2]
[367230822,1750709440776,-460.0,0.00019522,2]
[367230824,1750709440785,-629.22,0.00019522,2]
[367230826,1750709440796,-460.0,0.00019522,2]
[367230828,1750709440806,-605.63,0.00019522,2]
[367230830,1750709440815,-1038.79,0.00019522,2]
[367230832,1750709440825,-460.0,0.00019522,2]
[367230834,1750709440834,-460.0,0.00019522,2]
[367230836,1750709440844,-460.0,0.00019522,2]
[367230838,1750709440853,-1011.17,0.00019522,2]
[367230840,1750709440863,-460.0,0.00019522,2]
[367230842,1750709440872,-460.0,0.00019522,2]
[367230844,1750709440882,-536.36,0.00019522,2]
[367230846,1750709440891,-436.5824306,0.00019522,2]
[367230848,1750709440900,-460.0,0.00019523,2]
[367230850,1750709440909,-460.0,0.00019523,2]
[367230852,1750709440919,-460.0,0.00019523,2]
[367230854,1750709440928,-540.13168472,0.00019523,2]
[367230856,1750709440937,-460.0,0.00019523,2]
[367230858,1750709440946,-460.0,0.00019523,2]
[367230860,1750709440956,-460.0,0.00019523,2]
[367230862,1750709440965,-604.42,0.00019523,2]
[367230864,1750709440975,-460.0,0.00019523,2]
[367230866,1750709440984,-460.0,0.00019523,2]
[367230868,1750709440994,-460.0,0.00019523,2]
[367230869,1750709441004,-548.78208982,0.00019523,2]
[367230870,1750709441013,-460.0,0.00019523,2]
[367230871,1750709441023,-460.0,0.00019523,2]
[367230872,1750709441033,-460.0,0.00019523,2]
[367230873,1750709441044,-832.04,0.00019523,2]
[367230874,1750709441054,-460.0,0.00019523,2]
[367230875,1750709441063,-266.99636091,0.00019523,2]
[367230877,1750709441073,-460.0,0.00019523,2]
[367230879,1750709441082,-460.0,0.00019523,2]
[367230881,1750709441092,-460.0,0.00019523,2]
[367230883,1750709441103,-460.0,0.00019523,2]
[367230885,1750709441112,-460.0,0.00019523,2]
[367230887,1750709441121,-460.0,0.00019523,2]
[367230889,1750709441131,-460.0,0.00019523,2]
[367230891,1750709441141,-460.0,0.00019523,2]
[367230893,1750709441150,-460.0,0.00019523,2]
[367230895,1750709441160,-1011.7,0.00019523,2]
[367230897,1750709441169,-460.0,0.00019523,2]
[367230899,1750709441179,-460.0,0.00019523,2]
[367230901,1750709441192,-460.0,0.00019523,2]
[367230903,1750709441214,-578.25,0.00019523,2]
[367230905,1750709441242,-460.0,0.00019523,2]
[367230907,1750709441251,-460.0,0.00019523,2]
[367230909,1750709441261,-460.0,0.00019523,2]
[367230911,1750709441272,-619.53,0.00019523,2]
[367230913,1750709441281,-460.0,0.00019523,2]
[367230915,1750709441291,-460.0,0.00019523,2]
[367230917,1750709441302,-460.0,0.00019523,2]
[367230919,1750709441312,-528.72,0.00019523,2]
[367230921,1750709441323,-1395.84,0.00019523,2]
[367230923,1750709441332,-460.0,0.00019523,2]
[367230925,1750709441341,-553.54,0.00019523,2]
[367230927,1750709441351,-460.0,0.00019523,2]
[367230929,1750709441362,-460.0,0.00019523,2]
[367230931,1750709441372,-873.28,0.00019523,2]
[367230933,1750709441381,-460.0,0.00019523,2]
[367230935,1750709441390,-460.0,0.00019523,2]
[367230937,1750709441399,-460.0,0.00019523,2]
[367230939,1750709441409,-460.0,0.00019523,2]
[367230940,1750709441421,-460.0,0.00019523,2]
[367230943,1750709441431,-460.0,0.00019523,2]
[367230944,1750709441440,-460.0,0.00019523,2]
[367230946,1750709441449,-460.0,0.00019523,2]
[367230948,1750709441458,-334.28139495,0.00019523,2]
[367230950,1750709441469,-460.0,0.00019523,2]
[367230952,1750709441479,-780.34,0.00019523,2]
[367230954,1750709441489,-577.82,0.00019523,2]
[367230957,1750709441502,-460.0,0.00019523,2]
[367230959,1750709441512,-460.0,0.00019523,2]
[367230961,1750709441523,-1470.68,0.00019523,2]
[367230963,1750709441533,-799.78,0.00019523,2]
[367230965,1750709441546,-460.0,0.00019523,2]
[367230967,1750709441556,-460.0,0.00019523,2]
[367230969,1750709441566,-479.33,0.00019523,2]
[367230971,1750709441575,-460.0,0.00019523,2]
[367230973,1750709441585,-460.0,0.00019523,2]
[367230975,1750709441594,-460.0,0.00019523,2]
[367230977,1750709441603,-460.0,0.00019523,2]
[367230979,1750709441612,-460.0,0.00019523,2]
[367230981,1750709441623,-622.87,0.00019523,2]
[367230983,1750709441632,-460.0,0.00019523,2]
[367230985,1750709441642,-460.0,0.00019523,2]
[367230987,1750709441652,-460.0,0.00019523,2]
[367230989,1750709441662,-460.0,0.00019523,2]
[367230991,1750709441671,-460.0,0.00019523,2]
[367230993,1750709441681,-460.0,0.00019524,2]
[367230995,1750709441690,-460.0,0.00019524,2]
[367230997,1750709441699,-460.0,0.00019524,2]
[367230999,1750709441710,-460.0,0.00019524,2]
[367231001,1750709441720,-460.0,0.00019524,2]
[367231003,1750709441729,-2885.11,0.00019524,2]
[367231005,1750709441738,-460.0,0.00019524,2]
[367231007,1750709441747,-460.0,0.00019524,2]
[367231009,1750709441757,-460.0,0.00019525,2]
[367231011,1750709441766,-460.0,0.00019525,2]
[367231013,1750709441775,-460.0,0.00019525,2]
[367231015,1750709441784,-460.0,0.00019525,2]
[367231017,1750709441794,-825.14,0.00019525,2]
[367231019,1750709441803,-8169.38,0.00019525,2]
[367231021,1750709441812,-1278.2,0.00019525,2]
[367231023,1750709441822,-511.36,0.00019525,2]
[367231025,1750709441832,-1031.32,0.00019525,2]
[367231027,1750709441842,-1248.93,0.00019525,2]
[367231029,1750709441851,-513.68,0.00019525,2]
[367231031,1750709441861,-3094.59,0.00019525,2]
[367231033,1750709441870,-1113.63,0.00019525,2]
[367231035,1750709441879,-460.0,0.00019525,2]
[367231037,1750709441890,-647.1,0.00019525,2]
[367231039,1750709441900,-460.0,0.00019525,2]
[367231041,1750709441910,-578.67,0.00019525,2]
[367231043,1750709441919,-3564.29,0.00019525,2]
[367231045,1750709441928,-168.0,0.00019525,2]
[367231047,1750709441938,-460.0,0.00019526,2]
[367231049,1750709441947,-460.0,0.00019526,2]
[367231051,1750709441956,-460.0,0.00019526,2]
[367231053,1750709441965,-460.0,0.00019526,2]
[367231055,1750709441974,-460.0,0.00019526,2]
[367231057,1750709441984,-460.0,0.00019526,2]
[367231059,1750709441994,-460.0,0.00019526,2]
[367231061,1750709442003,-460.0,0.00019526,2]
[367231063,1750709442013,-460.0,0.00019526,2]
[367231066,1750709442023,-460.0,0.00019526,2]
[367231067,1750709442032,-460.0,0.00019526,2]
[367231070,1750709442043,-460.0,0.00019526,2]
[367231072,1750709442053,-460.0,0.00019526,2]
[367231073,1750709442061,-586.63930632,0.00019526,2]
[367231075,1750709442071,-460.0,0.00019526,2]
[367231076,1750709442080,-460.0,0.00019526,2]
[367231077,1750709442089,-460.05,0.00019526,2]
[367231080,1750709442099,-460.0,0.00019526,2]
[367231081,1750709442108,-460.0,0.00019526,2]
[367231083,1750709442118,-580.35,0.00019526,2]
[367231085,1750709442127,-530.11,0.00019526,2]
[367231087,1750709442136,-460.0,0.00019526,2]
[367231089,1750709442145,-460.0,0.00019526,2]
[367231091,1750709442154,-460.0,0.00019526,2]
[367231093,1750709442163,-600.41,0.00019526,2]
[367231095,1750709442173,-2404.02,0.00019526,2]
[367231097,1750709442182,-460.0,0.00019526,2]
[367231099,1750709442192,-2105.51,0.00019526,2]
[367231101,1750709442201,-460.0,0.00019526,2]
[367231103,1750709442210,-460.0,0.00019526,2]
[367231105,1750709442219,-460.0,0.00019526,2]
[367231107,1750709442229,-460.0,0.00019526,2]
[367231109,1750709442238,-460.0,0.00019526,2]
[367231111,1750709442247,-460.0,0.00019527,2]
[367231113,1750709442257,-460.0,0.00019527,2]
[367231115,1750709442266,-460.0,0.00019527,2]
[367231117,1750709442276,-460.0,0.00019527,2]
[367231119,1750709442285,-460.0,0.00019527,2]
[367231121,1750709442297,-460.0,0.0001953,2]
[367231123,1750709442307,-460.0,0.0001953,2]
[367231125,1750709442317,-460.0,0.0001953,2]
[367231127,1750709442326,-460.0,0.0001953,2]
[367231129,1750709442336,-460.0,0.0001953,2]
[367231131,1750709442346,-460.0,0.0001953,2]
[367231133,1750709442356,-2705.92,0.0001953,2]
[367231135,1750709442366,-2537.52,0.0001953,2]
[367231137,1750709442375,-818.44,0.0001953,2]
[367231139,1750709442385,-460.0,0.0001953,2]
[367231141,1750709442395,-1645.03,0.0001953,2]
[367231143,1750709442404,-556.78,0.0001953,2]
[367231146,1750709442418,-460.0,0.0001953,2]
[367231148,1750709442428,-2138.87,0.0001953,2]
[367231150,1750709442438,-3112.15,0.0001953,2]
[367231152,1750709442447,-550.47,0.0001953,2]
[367231154,1750709442458,-460.0,0.0001953,2]
[367231155,1750709442467,-763.89,0.0001953,2]
[367231158,1750709442477,-1297.4,0.0001953,2]
[367231159,1750709442486,-3323.48,0.0001953,2]
[367231161,1750709442495,-1380.82,0.0001953,2]
[367231164,1750709442506,-460.0,0.0001953,2]
[367231166,1750709442515,-875.66,0.0001953,2]
[367231169,1750709442524,-852.7,0.0001953,2]
[367231171,1750709442533,-460.0,0.0001953,2]
[367231172,1750709442546,-1112.07,0.0001953,2]
[367231175,1750709442556,-460.0,0.0001953,2]
[367231177,1750709442565,-1538.2,0.0001953,2]
[367231179,1750709442575,-460.0,0.00019531,2]
[367231181,1750709442584,-460.0,0.00019531,2]
[367231183,1750709442595,-460.0,0.00019531,2]
[367231185,1750709442604,-460.0,0.00019531,2]
[367231187,1750709442613,-460.0,0.00019531,2]
[367231189,1750709442622,-460.0,0.00019531,2]
[367231191,1750709442632,-460.0,0.00019531,2]
[367231196,1750709442641,-460.0,0.00019531,2]
[367231200,1750709442650,-535.69,0.00019531,2]
[367231204,1750709442659,-460.0,0.00019531,2]
[367231208,1750709442668,-511.17,0.00019531,2]
[367231211,1750709442677,-292.84220581,0.00019531,2]
[367231216,1750709442687,-460.0,0.00019531,2]
[367231218,1750709442696,-460.0,0.00019531,2]
[367231222,1750709442706,-495.77463313,0.00019531,2]
[367231226,1750709442715,-460.0,0.00019531,2]
[367231230,1750709442724,-658.28,0.00019531,2]
[367231234,1750709442734,-460.0,0.00019531,2]
[367231237,1750709442743,-1129.45,0.00019531,2]
[367231240,1750709442752,-460.0,0.00019531,2]
[367231243,1750709442762,-460.0,0.00019531,2]
[367231246,1750709442771,-227.63104084,0.00019531,2]
[367231250,1750709442781,-517.4,0.00019531,2]
[367231254,1750709442791,-460.0,0.00019531,2]
[367231257,1750709442802,-460.0,0.00019531,2]
[367231260,1750709442811,-526.89,0.00019531,2]
[367231263,1750709442820,-460.0,0.00019531,2]
[367231264,1750709442829,-539.46,0.00019531,2]
[367231266,1750709442839,-460.0,0.00019531,2]
[367231268,1750709442848,-460.0,0.00019531,2]
[367231270,1750709442857,-911.85,0.00019531,2]
[367231272,1750709442867,-460.0,0.00019531,2]
[367231274,1750709442877,-254.2608185,0.00019531,2]
[367231276,1750709442887,-500.0,0.00019531,2]
[367231278,1750709442896,-460.0,0.00019531,2]
[367231280,1750709442906,-460.0,0.00019531,2]
[367231282,1750709442915,-266.13712639,0.00019531,2]
[367231284,1750709442924,-1071.69,0.00019531,2]
[367231286,1750709442935,-182.74,0.00019531,2]
[367231288,1750709442944,-460.0,0.00019531,2]
[367231290,1750709442954,-460.0,0.00019531,2]
[367231292,1750709442963,-460.0,0.00019531,2]
[367231295,1750709442973,-460.0,0.00019531,2]
[367231297,1750709442982,-460.0,0.00019531,2]
[367231299,1750709442991,-460.0,0.00019531,2]
[367231300,1750709443001,-460.0,0.00019531,2]
[367231302,1750709443010,-747.65,0.00019531,2]
[367231304,1750709443020,-460.0,0.00019531,2]
[367231323,1750709443191,-969.3,0.00019531,2]
[367231326,1750709443201,-482.23,0.00019531,2]
[367231328,1750709443212,-460.0,0.00019531,2]
[367231330,1750709443222,-460.0,0.00019531,2]
[367231332,1750709443232,-460.0,0.00019531,2]
[367231334,1750709443242,-460.0,0.00019531,2]
[367231336,1750709443253,-514.41,0.00019531,2]
[367231338,1750709443264,-460.0,0.00019531,2]
[367231340,1750709443274,-460.0,0.00019531,2]
[367231342,1750709443283,-460.0,0.00019531,2]
[367231344,1750709443294,-829.43,0.00019531,2]
[367231346,1750709443303,-460.0,0.00019531,2]
[367231348,1750709443313,-460.0,0.00019531,2]
[367231350,1750709443323,-460.0,0.00019531,2]
[367231352,1750709443333,-460.0,0.00019531,2]
[367231354,1750709443342,-460.0,0.00019531,2]
[367231356,1750709443351,-521.74,0.00019531,2]
[367231358,1750709443361,-1766.57,0.00019531,2]
[367231360,1750709443370,-514.68,0.00019531,2]
[367231362,1750709443379,-460.0,0.00019531,2]
[367231364,1750709443389,-500.0,0.00019535,2]
[367231366,1750709443399,-500.0,0.00019536,2]
[367231368,1750709443413,-151.0,0.00019536,2]
[367231370,1750709443422,-154.16487973,0.00019536,2]
[367231372,1750709443432,-500.0,0.00019536,2]
[367231374,1750709443442,-500.0,0.00019536,2]
[367231376,1750709443452,-152.85391825,0.00019536,2]
[367231378,1750709443462,-151.0,0.00019536,2]
[367231380,1750709443471,-151.0,0.00019536,2]
[367231382,1750709443482,-500.0,0.00019536,2]
[367231384,1750709443492,-500.0,0.00019536,2]
[367231386,1750709443502,-500.0,0.00019536,2]
[367231388,1750709443512,-500.0,0.00019536,2]
[367231390,1750709443521,-500.0,0.00019536,2]
[367231392,1750709443531,-151.0,0.00019536,2]
[367231394,1750709443543,-186.73,0.00019542,2]
[367231396,1750709443552,-186.74927875,0.00019542,2]
[367231398,1750709443562,-500.0,0.00019564,2]
[367231400,1750709443572,-198.0,0.00019564,2]
[367231402,1750709443582,-500.0,0.00019564,2]
[367231403,1750709443591,-500.0,0.00019564,2]
[367231404,1750709443602,-166.07256633,0.00019564,2]
[367231405,1750709443613,-198.94206316,0.00019564,2]
[367231406,1750709443623,-500.0,0.00019564,2]